bitfinex/quotes_ETHUSD_20240702
["timestamp","ask_amount","ask_price","bid_price","bid_amount"]
[1719928831351,0.65769136,3441.7,3441.6,5.81124]
[1719928831700,0.65769136,3442.0,3441.9,5.81074]
[1719928832190,0.23671371,3442.2,3442.1,5.8104]
[1719928832510,0.23671371,3442.2,3442.1,6.3604]
[1719928833478,0.65769136,3442.3,3442.2,5.81022]
[1719928833681,0.65769136,3442.3,3442.2,6.36022]
[1719928834074,0.23671371,3442.4,3442.3,5.81006]
[1719928834289,0.23671371,3442.4,3442.3,2.90503]
[1719928834454,0.23671371,3442.4,3442.3,5.81006]
[1719928834656,2.4931,3443.7,3442.4,2.90495]
[1719928834657,0.23671371,3442.6,3442.4,2.90495]
[1719928834881,0.23671371,3442.6,3442.5,6.35972]
[1719928835090,0.89440507,3442.6,3442.5,6.35972]
[1719928835709,0.61232927,3443.4,3442.5,6.35972]
[1719928835710,0.23671371,3443.0,3442.9,5.80904]
[1719928835852,0.89440507,3443.2,3443.1,5.8087]
[1719928836056,0.89440507,3443.2,3443.1,6.3587]
[1719928836492,0.65769136,3443.2,3443.1,6.3587]
[1719928836955,0.89440507,3443.4,3443.3,2.90419]
[1719928837500,0.89440507,3443.4,3443.3,5.80838]
[1719928838157,0.89440507,3443.4,3443.3,6.35838]
[1719928840127,0.89440507,3443.4,3443.3,2.90419]
[1719928840909,0.89440507,3443.4,3443.2,2.90426]
[1719928841054,2.2606,3444.2,3442.5,3.315]
[1719928841055,0.23671371,3442.9,3442.8,2.9046]
[1719928841258,0.07260618,3443.9,3442.8,2.9046]
[1719928841259,0.89440507,3443.4,3443.3,2.90419]
[1719928841503,0.89440507,3443.4,3443.3,5.80838]
[1719928841855,0.73029251,3444.1,3442.9,2.90447]
[1719928842055,0.65769136,3444.1,3444.0,2.9036]
[1719928842482,0.89440507,3444.0,3443.9,2.90364]
[1719928842694,0.89440507,3444.0,3443.9,5.80732]
[1719928843258,0.23671371,3444.0,3443.9,2.90364]
[1719928843904,0.23671371,3444.0,3443.9,6.35732]
[1719928844366,0.23671371,3444.0,3443.9,2.90364]
[1719928845118,0.23671371,3444.0,3443.5,2.90399]
[1719928845119,0.23671371,3443.6,3443.5,2.90399]
[1719928845410,0.23671371,3443.2,3443.1,5.8087]
[1719928845703,0.23671371,3443.5,3443.4,5.8082]
[1719928846860,0.23671371,3443.8,3443.7,2.90385]
[1719928847060,0.65769136,3444.0,3443.9,5.80736]
[1719928847061,0.89440507,3444.0,3443.9,5.80736]
[1719928847369,0.89440507,3444.0,3443.9,6.35736]
[1719928847993,0.65769136,3444.0,3443.9,9.26104]
[1719928848417,2.4366,3445.2,3444.1,5.80702]
[1719928848418,0.65769136,3444.2,3444.1,5.80702]
[1719928848702,0.65769136,3444.2,3444.1,8.71053]
[1719928848901,0.65769136,3444.2,3444.1,9.26053]
[1719928850306,0.89440507,3444.2,3444.1,6.35702]
[1719928850481,0.89440507,3444.2,3444.1,5.80702]
[1719928850807,0.89440507,3444.2,3444.1,2.90351]
[1719928850808,0.23671371,3444.2,3444.1,2.90351]
[1719928851017,0.89440507,3444.2,3444.1,2.90351]
[1719928851199,0.89440507,3444.2,3444.1,5.80702]
[1719928851377,0.65769136,3444.2,3444.1,5.80702]
[1719928851585,0.89440507,3444.4,3444.3,5.80668]
[1719928852508,0.89440507,3444.4,3444.3,6.35668]
[1719928853166,0.89440507,3444.4,3444.3,5.80668]
[1719928853366,0.65769136,3444.4,3444.3,8.71002]
[1719928853566,0.65769136,3444.4,3444.3,9.26002]
[1719928853763,0.89440507,3444.4,3444.3,5.80668]
[1719928854083,0.89440507,3444.4,3444.3,2.90334]
[1719928854411,0.89440507,3444.2,3444.1,2.9035]
[1719928854708,0.89440507,3444.2,3444.0,2.90358]
[1719928854891,0.23671371,3443.9,3443.8,2.90376]
[1719928855096,0.07258735,3444.8,3443.3,2.90419]
[1719928855097,0.23671371,3443.4,3443.3,2.90419]
[1719928855420,0.23671371,3443.6,3443.5,5.80804]
[1719928855919,0.23671371,3443.6,3443.4,5.8082]
[1719928855920,0.65769136,3443.5,3443.4,5.8082]
[1719928856471,0.65769136,3443.7,3443.6,5.80786]
[1719928856872,0.23671371,3444.2,3444.1,2.90351]
[1719928857300,0.23671371,3444.2,3444.1,5.80702]
[1719928858121,0.65769136,3444.3,3444.2,5.80686]
[1719928858323,0.89440507,3444.3,3444.2,5.80686]
[1719928858487,0.89440507,3444.3,3444.2,6.35686]
[1719928859169,0.65769136,3444.3,3444.2,6.35686]
[1719928859365,0.65769136,3444.3,3444.2,9.26029]
[1719928859602,0.65769136,3444.5,3444.4,5.80652]
[1719928860006,0.89440507,3444.5,3444.4,6.35652]
[1719928860636,0.23671371,3444.0,3443.8,3.0]
[1719928860780,0.89440507,3444.3,3444.2,5.80686]
[1719928860974,0.23671371,3444.3,3444.2,2.90343]
[1719928861180,0.23671371,3444.3,3444.2,5.80686]
[1719928861419,0.65769136,3444.4,3444.3,5.80668]
[1719928861634,0.23671371,3444.5,3444.4,5.80652]
[1719928861977,0.23671371,3444.5,3444.4,6.35652]
[1719928862845,0.23671371,3444.5,3443.7,3.0]
[1719928862846,0.23671371,3444.2,3444.1,2.90351]
[1719928862979,0.23671371,3444.2,3443.9,2.90366]
[1719928863186,0.23671371,3444.0,3443.9,2.90366]
[1719928863417,2.3259,3444.7,3443.1,2.90435]
[1719928863418,0.23671371,3443.2,3443.1,2.90435]
[1719928863686,2.3259,3444.7,3443.5,5.80804]
[1719928863687,0.23671371,3443.6,3443.5,5.80804]
[1719928864128,0.23671371,3443.4,3443.3,2.90416]
[1719928864339,0.23671371,3443.2,3443.1,2.90433]
[1719928864639,2.3458,3443.8,3442.5,2.90486]
[1719928864640,0.23671371,3442.6,3442.5,2.90486]
[1719928865058,0.23671371,3442.4,3442.3,2.90501]
[1719928865341,0.23671371,3442.4,3441.2,1.162965]
[1719928865342,0.89440507,3442.0,3441.9,2.90537]
[1719928865499,0.89440507,3442.0,3441.7,2.90552]
[1719928865500,0.23671371,3441.8,3441.7,2.90552]
[1719928865694,2.4292,3442.8,3441.0,2.90607]
[1719928865695,0.23671371,3441.2,3441.1,2.90597]
[1719928865939,0.23671371,3441.2,3441.1,5.81201]
[1719928866411,0.89440507,3441.2,3441.1,2.90597]
[1719928866808,0.23671371,3441.0,3440.2,2.90675]
[1719928867012,0.23671371,3440.9,3440.8,2.90627]
[1719928867239,2.37805163,3441.7,3440.4,2.90662]
[1719928867240,0.23671371,3440.5,3440.4,2.90662]
[1719928867395,2.90572,3441.5,3440.2,2.9068]
[1719928867396,0.23671371,3440.3,3440.2,2.9068]
[1719928867600,0.23671371,3440.7,3440.6,2.90646]
[1719928867812,0.23671371,3440.7,3440.6,5.81292]
[1719928871251,0.89440507,3440.2,3440.1,2.90689]
[1719928871625,0.23671371,3440.2,3440.1,2.90689]
[1719928872070,0.23671371,3439.7,3439.6,2.90731]
[1719928872568,0.23671371,3439.7,3439.6,5.81462]
[1719928872716,0.23671371,3439.7,3439.5,2.90737]
[1719928872717,0.89440507,3439.7,3439.5,2.90737]
[1719928872914,0.07267415,3440.3,3439.3,2.90755]
[1719928872915,0.23671371,3439.4,3439.3,2.90755]
[1719928873371,3.22123606,3440.4,3439.1,2.90773]
[1719928873372,0.23671371,3439.2,3439.1,2.90773]
[1719928873943,0.07268951,3439.8,3438.1,3.315]
[1719928873944,0.23671371,3438.6,3438.1,3.315]
[1719928874280,0.23671371,3438.6,3438.5,5.81648]
[1719928874762,0.89440507,3438.8,3438.7,5.81614]
[1719928874956,0.89440507,3438.8,3438.7,2.90807]
[1719928875554,0.89440507,3438.6,3438.5,2.90823]
[1719928875761,0.23671371,3438.8,3438.7,2.90807]
[1719928875931,0.89440507,3438.8,3438.7,5.81614]
[1719928876135,0.23671371,3438.6,3438.5,2.90823]
[1719928876432,0.65769136,3439.0,3438.9,2.9079]
[1719928876634,0.23671371,3439.1,3439.0,5.81564]
[1719928876855,2.4067,3440.2,3438.6,6.22314]
[1719928876856,0.23671371,3439.7,3438.6,6.22314]
[1719928877069,0.65769136,3439.6,3439.5,5.81478]
[1719928877360,0.23671371,3439.3,3439.2,2.90759]
[1719928877729,0.89440507,3439.3,3439.2,2.90759]
[1719928877959,0.23671371,3439.3,3439.2,5.81524]
[1719928878180,0.23671371,3439.3,3439.2,9.36524]
[1719928878561,0.23671371,3439.6,3439.5,5.81478]
[1719928878766,0.65769136,3439.9,3439.8,5.81428]
[1719928879100,0.23671371,3440.0,3439.9,5.81412]
[1719928879483,0.23671371,3440.0,3439.9,6.36412]
[1719928880371,0.23671371,3439.8,3439.7,2.90722]
[1719928880685,0.23671371,3439.5,3439.4,5.81494]
[1719928881485,0.65769136,3439.6,3439.2,3.0]
[1719928881695,0.65769136,3440.0,3439.2,2.90763]
[1719928881862,0.23671371,3439.9,3439.3,3.60813598]
[1719928882066,0.65769136,3440.0,3439.6,2.90724]
[1719928882277,0.23671371,3439.9,3439.8,5.81428]
[1719928882459,0.89440507,3440.4,3440.3,5.81344]
[1719928882652,0.89440507,3440.4,3440.3,6.36344]
[1719928883055,0.89440507,3440.2,3440.1,2.90688]
[1719928883250,0.89440507,3440.2,3440.0,2.90696]
[1719928883491,0.23671371,3439.9,3439.8,2.90708]
[1719928883790,0.89440507,3439.9,3439.8,2.90708]
[1719928883959,0.23671371,3439.6,3439.5,2.90738]
[1719928884696,0.23671371,3439.6,3439.2,2.90763]
[1719928884697,0.89440507,3439.3,3439.2,2.90763]
[1719928884999,0.23671371,3439.1,3439.0,5.81561]
[1719928885157,0.89440507,3439.1,3439.0,5.81561]
[1719928885773,0.65769136,3439.1,3439.0,5.81561]
[1719928886012,0.89440507,3439.4,3439.3,2.90756]
[1719928886210,0.23671371,3439.2,3439.1,2.90772]
[1719928886375,0.23671371,3438.7,3438.6,8.81632]
[1719928886704,0.23671371,3439.1,3439.0,5.81564]
[1719928886908,0.89440507,3439.1,3439.0,5.81564]
[1719928887211,0.89440507,3438.9,3438.8,2.90799]
[1719928887524,0.23671371,3438.9,3438.8,5.90799]
[1719928887672,0.89440507,3438.9,3438.8,8.81598]
[1719928888344,0.23671371,3438.9,3438.8,8.81598]
[1719928888609,0.89440507,3438.9,3438.8,9.36598]
[1719928889373,0.89440507,3438.9,3438.8,8.81598]
[1719928889681,0.07268715,3439.7,3438.8,8.81598]
[1719928889682,0.23671371,3439.3,3438.9,2.90786]
[1719928889889,0.23671371,3439.1,3439.0,2.90782]
[1719928890112,0.23671371,3439.3,3439.2,5.8153]
[1719928890313,0.23671371,3439.7,3439.6,2.90731]
[1719928890677,0.23671371,3439.7,3439.6,5.87276518]
[1719928890875,0.89440507,3439.9,3439.8,5.81428]
[1719928891128,0.89440507,3439.9,3439.8,6.36428]
[1719928891627,0.89440507,3439.9,3439.8,2.90714]
[1719928891815,0.89440507,3439.9,3439.8,5.81428]
[1719928892125,0.89440507,3439.9,3439.8,5.77852584]
[1719928892297,0.07268147,3440.6,3438.7,2.90804]
[1719928892298,0.23671371,3439.2,3438.7,2.90804]
[1719928892481,0.23671371,3439.2,3439.1,5.81546]
[1719928892675,0.65769136,3439.4,3439.1,3.55]
[1719928892936,0.65769136,3439.4,3439.3,8.72268]
[1719928893170,0.23671371,3439.6,3439.5,8.72217]
[1719928893318,0.07267902,3440.6,3439.5,8.72217]
[1719928893319,0.23671371,3440.3,3439.5,3.0]
[1719928893642,2.3253,3441.2,3439.5,3.0]
[1719928893643,0.23671371,3440.8,3440.7,2.90638]
[1719928893937,0.23671371,3440.8,3440.7,5.81276]
[1719928894536,0.89440507,3440.8,3440.7,5.81276]
[1719928895296,0.23671371,3440.8,3440.7,9.36276]
[1719928895496,0.23671371,3440.8,3440.7,8.81276]
[1719928895497,0.89440507,3440.8,3440.7,8.81276]
[1719928895937,0.23671371,3440.6,3440.5,2.90654]
[1719928896135,0.23671371,3440.6,3440.5,5.81309]
[1719928896636,0.23671371,3440.3,3440.2,2.90677]
[1719928896933,0.23671371,3440.3,3440.2,5.81357]
[1719928897295,0.89440507,3440.3,3440.2,2.90677]
[1719928897954,0.23671371,3440.3,3440.2,5.81357]
[1719928898669,0.89440507,3440.3,3440.2,2.90677]
[1719928898981,0.89440507,3440.3,3440.1,2.90686]
[1719928899189,0.23671371,3439.7,3439.6,5.81462]
[1719928899538,0.89440507,3439.7,3439.6,2.90731]
[1719928899780,0.89440507,3439.5,3439.4,5.81494]
[1719928900767,0.23671371,3439.7,3439.6,5.81462]
[1719928901133,0.65769136,3439.8,3439.7,5.81446]
[1719928901430,0.89440507,3440.1,3440.0,5.81394]
[1719928901635,0.89440507,3440.5,3440.4,5.81326]
[1719928903740,0.23671371,3439.9,3439.8,2.90714]
[1719928904059,0.23671371,3439.9,3439.8,12.27142]
[1719928904287,0.23671371,3440.4,3439.8,6.864]
[1719928904456,0.23671371,3440.4,3440.3,8.72016]
[1719928904660,2.3938,3441.3,3440.5,5.8131]
[1719928904661,0.23671371,3440.6,3440.5,5.8131]
[1719928906275,0.89440507,3440.4,3440.3,2.9067]
[1719928907188,0.89440507,3440.4,3440.3,5.81342]
[1719928908454,0.23671371,3440.6,3440.5,5.8131]
[1719928908692,0.23671371,3440.6,3440.5,8.71965]
[1719928908987,0.23671371,3440.6,3440.5,12.26965]
[1719928909202,0.23671371,3440.6,3440.5,8.8131]
[1719928909359,0.23671371,3440.6,3440.5,2.90655]
[1719928910269,0.23671371,3440.3,3440.2,2.90679]
[1719928910863,0.89440507,3440.3,3440.2,5.81359]
[1719928911067,0.89440507,3440.1,3440.0,2.90695]
[1719928911277,0.23671371,3440.1,3440.0,2.90695]
[1719928911499,0.23671371,3439.7,3439.6,2.90723]
[1719928912659,0.23671371,3439.1,3439.0,3.51074272]
[1719928912894,0.23671371,3439.1,3439.0,5.81561]
[1719928913565,0.89440507,3439.1,3439.0,5.81561]
[1719928914182,0.23671371,3439.1,3439.0,5.81561]
[1719928914763,0.89440507,3439.1,3439.0,5.81561]
[1719928914973,0.23671371,3439.1,3439.0,5.81561]
[1719928915657,0.89440507,3439.1,3439.0,5.81561]
[1719928916060,0.23671371,3439.1,3439.0,5.81561]
[1719928916467,0.89440507,3439.1,3439.0,5.81561]
[1719928917096,0.89440507,3439.1,3439.0,2.90779]
[1719928917325,0.23671371,3438.7,3438.6,2.90814]
[1719928917490,0.23671371,3438.7,3437.8,0.60847945]
[1719928917491,0.23671371,3437.9,3437.8,0.60847945]
[1719928917693,0.23671371,3437.9,3437.3,1.52119862]
[1719928917694,0.23671371,3437.4,3437.3,0.60847945]
[1719928917887,0.89440507,3437.4,3437.3,5.81852]
[1719928918388,0.65769136,3437.6,3437.5,5.81818]
[1719928919211,0.23671371,3437.7,3437.6,5.818]
[1719928919915,0.23671371,3437.7,3437.3,2.90922]
[1719928919916,0.89440507,3437.9,3437.8,2.90883]
[1719928920121,0.89440507,3437.9,3437.8,5.81766]
[1719928920435,0.23671371,3438.1,3438.0,5.81732]
[1719928920638,0.23671371,3438.1,3437.2,2.90934]
[1719928920639,0.23671371,3437.9,3437.2,2.90934]
[1719928920780,0.89440507,3437.2,3437.1,5.81884]
[1719928921323,0.23671371,3437.2,3437.1,5.81884]
[1719928921526,0.89440507,3437.2,3437.1,5.81884]
[1719928921683,0.89440507,3437.2,3436.4,6.224]
[1719928921684,0.23671371,3436.5,3436.4,6.224]
[1719928922029,0.23671371,3436.5,3436.4,12.04404]
[1719928922320,0.65769136,3436.7,3436.6,5.8197]
[1719928922679,0.65769136,3436.7,3436.4,6.224]
[1719928922680,0.23671371,3436.7,3436.4,3.314]
[1719928922882,0.23671371,3436.9,3436.8,5.81936]
[1719928923090,0.23671371,3437.4,3437.1,2.90942]
[1719928923295,0.65769136,3437.6,3437.5,5.81818]
[1719928923498,0.89440507,3437.7,3437.6,5.818]
[1719928923696,0.89440507,3437.7,3437.6,8.727]
[1719928923906,0.65769136,3438.2,3437.6,0.55]
[1719928924185,0.23671371,3438.3,3438.2,8.72547]
[1719928924431,0.89440507,3438.3,3438.2,5.81698]
[1719928924893,0.23671371,3438.3,3438.2,8.72547]
[1719928925083,0.89440507,3438.8,3438.5,2.90824]
[1719928925283,0.23671371,3438.6,3438.5,5.81648]
[1719928925513,0.89440507,3438.6,3438.5,5.81648]
[1719928925718,0.65769136,3438.6,3438.5,5.81648]
[1719928926132,0.89440507,3438.6,3438.5,2.90824]
[1719928926288,0.23671371,3437.9,3436.6,2.90978]
[1719928926492,0.23671371,3437.9,3437.8,8.72649]
[1719928926726,0.07270388,3439.4,3437.8,0.55]
[1719928926727,0.23671371,3438.7,3437.8,0.55]
[1719928926889,0.89440507,3439.2,3438.6,6.22216]
[1719928927083,0.89440507,3439.2,3439.1,2.90773]
[1719928927084,0.65769136,3439.2,3439.1,2.90773]
[1719928927293,0.89440507,3439.2,3439.1,5.81546]
[1719928928065,0.65769136,3439.2,3439.1,5.81546]
[1719928928183,0.65769136,3439.2,3439.1,8.72319]
[1719928928382,0.65769136,3439.5,3439.4,5.81496]
[1719928928931,0.23671371,3439.6,3439.5,5.81478]
[1719928929488,0.23671371,3439.8,3439.7,5.81446]
[1719928930013,0.65769136,3439.9,3439.7,2.90723]
[1719928930214,0.65769136,3439.9,3439.8,5.81428]
[1719928930531,0.89440507,3439.9,3439.8,8.72142]
[1719928931341,0.65769136,3439.9,3439.8,8.72142]
[1719928931511,0.65769136,3439.9,3439.8,11.72142]
[1719928931712,0.65769136,3439.9,3439.8,8.81428]
[1719928932103,0.65769136,3439.9,3439.8,11.72142]
[1719928932323,0.89440507,3440.5,3440.4,8.71989]
[1719928932637,0.23671371,3440.5,3440.4,12.03389]
[1719928932845,0.23671371,3440.5,3440.4,15.03389]
[1719928932999,0.23671371,3440.5,3440.4,15.58389]
[1719928933196,0.89440507,3440.9,3440.8,5.8126]
[1719928938838,0.23671371,3440.9,3440.8,8.7189]
[1719928939043,0.23671371,3440.9,3440.8,11.7189]
[1719928939860,0.23671371,3440.9,3440.8,5.8126]
[1719928940221,0.89440507,3440.9,3440.8,5.8126]
[1719928940950,0.23671371,3440.9,3440.8,5.8126]
[1719928941256,0.23671371,3440.9,3439.5,2.90737]
[1719928941257,0.23671371,3439.8,3439.2,2.90764]
[1719928941473,0.23671371,3439.8,3439.7,5.81446]
[1719928941774,0.23671371,3440.0,3439.7,8.72169]
[1719928941955,0.23671371,3440.0,3439.9,5.81412]
[1719928942459,0.23671371,3440.2,3440.1,5.81378]
[1719928942965,0.65769136,3440.4,3440.3,5.81344]
[1719928943184,0.23671371,3440.7,3440.6,5.81292]
[1719928944139,0.65769136,3440.7,3440.6,5.81292]
[1719928944551,0.89440507,3440.7,3440.6,5.81292]
[1719928945481,0.65769136,3440.7,3440.6,5.81292]
[1719928945783,0.89440507,3440.7,3440.6,5.81292]
[1719928946952,0.65769136,3440.7,3440.6,5.81292]
[1719928947150,0.89440507,3440.9,3440.8,5.8126]
[1719928949553,0.23671371,3440.7,3440.6,2.90646]
[1719928949755,0.23671371,3440.7,3440.4,2.90657]
[1719928950056,0.23671371,3440.5,3440.4,8.71989]
[1719928950237,0.23671371,3440.5,3440.4,5.81326]
[1719928950895,0.89440507,3440.3,3440.2,2.90674]
[1719928952086,0.89440507,3440.3,3440.2,5.81354]
[1719928953881,0.23671371,3440.1,3440.0,2.90696]
[1719928954080,0.89440507,3440.1,3440.0,2.90696]
[1719928954450,0.07267035,3440.6,3439.2,9.1293]
[1719928954451,0.23671371,3439.3,3439.2,9.1293]
[1719928954652,0.23671371,3439.3,3439.2,5.8153]
[1719928955062,0.23671371,3439.3,3439.2,2.90765]
[1719928955386,0.89440507,3438.9,3438.8,5.81594]
[1719928955681,0.23671371,3438.9,3438.8,5.81594]
[1719928955883,0.89440507,3438.9,3438.8,2.90795]
[1719928958063,0.89440507,3438.9,3438.8,5.81594]
[1719928958648,0.23671371,3438.9,3438.8,2.90795]
[1719928958962,0.89440507,3438.9,3438.8,2.90795]
[1719928959567,0.23671371,3438.9,3438.8,5.81594]
[1719928959773,0.89440507,3438.9,3438.8,5.81594]
[1719928960797,0.23671371,3439.2,3438.6,3.314]
[1719928960970,0.23671371,3439.2,3439.1,5.81546]
[1719928961173,0.23671371,3439.5,3439.4,5.81496]
[1719928961800,0.23671371,3439.5,3439.4,11.72244]
[1719928962167,0.65769136,3440.0,3439.4,3.0]
[1719928962518,0.89440507,3440.3,3439.6,3.314]
[1719928962812,0.89440507,3440.3,3439.7,0.0581362]
[1719928963113,0.89440507,3440.3,3440.2,5.8136]
[1719928963265,0.23671371,3440.3,3440.2,8.7204]
[1719928963808,0.23671371,3440.3,3440.2,5.8136]
[1719928965612,0.23671371,3440.1,3440.0,2.90696]
[1719928966101,0.07266823,3440.4,3439.8,2.90711]
[1719928966102,0.89440507,3439.9,3439.8,2.90711]
[1719928966310,0.07266823,3440.4,3440.0,0.10559493]
[1719928966611,0.07267919,3440.7,3440.1,2.90686]
[1719928966781,0.07267919,3440.7,3440.4,2.90663]
[1719928967166,0.07267919,3440.7,3440.2,2.90675]
[1719928967363,0.07267919,3440.7,3440.3,2.90664]
[1719928967673,0.07267919,3440.7,3440.0,0.10559493]
[1719928967674,0.07266933,3441.1,3440.5,2.90647]
[1719928968071,8.7189,3441.0,3440.6,2.90645]
[1719928968296,1.03994091,3440.9,3440.6,2.90645]
[1719928968482,8.7189,3440.8,3440.5,2.90654]
[1719928968663,8.7189,3440.8,3440.4,2.90658]
[1719928968866,0.07266677,3440.7,3440.5,2.90654]
[1719928969107,8.7189,3440.6,3440.5,2.90654]
[1719928969482,8.7189,3440.6,3440.5,5.81309]
[1719928972386,8.7189,3440.6,3440.5,8.71964]
[1719928972985,8.7189,3440.6,3440.5,5.81309]
[1719928974495,8.7189,3440.6,3440.5,8.71964]
[1719928974698,8.7189,3440.6,3440.5,9.26964]
[1719928976787,8.7189,3440.6,3440.5,6.36309]
[1719928976990,8.7189,3440.6,3440.5,5.81309]
[1719928977498,8.7189,3440.6,3440.5,8.71964]
[1719928977677,8.7189,3440.6,3440.5,5.81309]
[1719928978109,8.7189,3440.6,3440.5,8.71964]
[1719928978508,8.7189,3440.6,3440.5,5.81309]
[1719928978707,8.7189,3440.6,3440.5,8.71964]
[1719928979094,8.7189,3440.6,3440.5,5.81309]
[1719928980179,8.7189,3440.6,3440.5,8.71964]
[1719928981617,8.7189,3440.6,3440.5,9.26964]
[1719928981814,8.7189,3440.6,3440.5,12.26964]
[1719928982137,8.7189,3440.6,3440.5,15.17619]
[1719928982283,8.7189,3440.6,3440.5,18.49019]
[1719928982826,8.7189,3440.6,3440.5,15.58364]
[1719928982996,8.7189,3440.6,3440.5,18.49019]
[1719928983519,8.7189,3440.6,3440.5,15.58364]
[1719928984124,8.7189,3440.6,3440.4,2.90663]
[1719928984327,0.87189,3440.5,3440.4,5.81326]
[1719928984545,2.9058,3440.5,3440.0,0.10559493]
[1719928984684,2.9058,3440.5,3440.4,5.81326]
[1719928985112,2.9058,3440.5,3440.2,2.90675]
[1719928985432,2.9058,3440.5,3440.3,2.90667]
[1719928985433,0.36324857,3440.4,3440.3,2.90667]
[1719928985593,2.9058,3440.5,3440.4,5.81326]
[1719928986546,2.9058,3440.5,3440.0,3.01252493]
[1719928986747,0.07267211,3440.4,3440.1,2.90682]
[1719928986902,2.9058,3440.3,3440.1,2.90682]
[1719928987506,0.07267141,3440.2,3440.0,0.10559493]
[1719928987705,5.2554,3440.1,3440.0,0.10559493]
[1719928989010,2.9058,3440.1,3440.0,0.10559493]
[1719928989216,2.9058,3440.1,3440.0,3.01256493]
[1719928989420,2.9058,3440.1,3440.0,5.91953493]
[1719928990389,2.9058,3440.1,3440.0,11.82650493]
[1719928990593,2.9058,3440.1,3440.0,12.37650493]
[1719928991639,2.9058,3440.1,3440.0,15.28347493]
[1719928992175,2.9058,3440.1,3440.0,12.37650493]
[1719928994660,2.9058,3440.1,3440.0,5.91953493]
[1719928997070,2.9058,3440.1,3440.0,0.10559493]
[1719928997276,2.9058,3440.1,3440.0,3.01256493]
[1719928997277,3.19638,3440.1,3440.0,3.01256493]
[1719928997575,3.19638,3440.1,3440.0,0.10559493]
[1719928998439,5.62258,3440.1,3440.0,0.10559493]
[1719928998677,5.58966785,3440.1,3439.5,2.90732]
[1719928998969,0.852935,3440.0,3439.6,2.90724]
[1719928999134,2.87288801,3439.9,3439.6,2.90724]
[1719928999329,2.80020507,3439.9,3439.7,2.90721]
[1719928999544,2.80020507,3439.9,3439.8,2.90714]
[1719928999746,2.80020507,3439.9,3439.8,5.81428]
[1719929000779,2.80020507,3439.9,3439.8,2.90714]
[1719929002289,2.80020507,3439.9,3439.8,5.81428]
[1719929004179,2.80020507,3439.9,3439.8,11.62856]
[1719929004396,2.80020507,3439.9,3439.8,15.17856]
[1719929005995,2.80020507,3439.9,3439.8,15.14279917]
[1719929006146,5.07e-06,3439.9,3439.8,15.14279917]
[1719929006895,0.0726539,3441.6,3441.3,2.90586]
[1719929007096,0.60023355,3441.7,3441.3,2.90586]
[1719929007607,0.07264855,3441.7,3441.3,2.90586]
[1719929010894,0.07264855,3441.7,3441.5,2.9057]
[1719929012275,0.07264855,3441.7,3441.1,2.90597]
[1719929012480,0.83556719,3441.6,3441.1,2.90597]
[1719929012712,0.40051282,3441.5,3441.1,2.90597]
[1719929012892,0.40051282,3441.5,3441.1,2.90604]
[1719929013363,0.40051282,3441.5,3440.9,2.90617]
[1719929013564,0.83552041,3441.4,3440.9,2.90614]
[1719929013792,0.0726537,3441.3,3440.9,2.90614]
[1719929014178,0.0726537,3441.3,3440.0,2.90697]
[1719929014464,2.4041,3441.1,3440.5,2.9065]
[1719929014669,0.07266268,3441.0,3440.5,5.81298]
[1719929014996,0.83551624,3440.9,3440.3,2.90668]
[1719929015201,0.07266519,3440.8,3440.3,5.81332]
[1719929015388,0.07266519,3440.8,3440.4,2.90661]
[1719929016409,0.07266519,3440.8,3440.1,2.90684]
[1719929016605,3.15396627,3440.9,3440.1,5.81366]
[1719929016606,0.39533346,3440.7,3440.1,5.81366]
[1719929016788,0.39533346,3440.7,3440.1,5.81363]
[1719929016990,0.39533346,3440.7,3440.1,2.90681]
[1719929017512,2.90614,3441.0,3439.5,2.90736]
[1719929017513,2.4041,3441.1,3440.4,2.90657]
[1719929017718,2.4041,3441.1,3440.8,2.90628]
[1719929017928,0.24041,3441.1,3440.8,2.90628]
[1719929018086,0.07265635,3441.4,3440.9,2.90619]
[1719929018407,2.3562,3441.6,3441.2,2.90591]
[1719929018903,2.3562,3441.6,3441.2,5.81179]
[1719929019130,0.07264619,3441.5,3441.2,2.90588]
[1719929019283,0.24288462,3441.4,3441.2,2.90588]
[1719929019603,0.07264632,3441.9,3441.3,2.90587]
[1719929020465,0.83547215,3441.8,3441.3,2.90587]
[1719929020700,0.07264615,3441.7,3441.3,2.90587]
[1719929021696,2.97784607,3442.1,3441.3,2.90587]
[1719929021892,3.74071908,3442.0,3441.3,2.90587]
[1719929022068,0.90807518,3441.9,3441.3,5.81166]
[1719929022273,0.90807518,3441.9,3441.4,2.90575]
[1719929022274,0.0726461,3441.9,3441.4,2.90575]
[1719929022477,0.42123401,3441.9,3441.5,2.90569]
[1719929022983,3.32663401,3441.9,3441.1,2.90601]
[1719929023364,3.32663401,3441.9,3441.2,2.90588]
[1719929023365,0.1532467,3441.8,3441.2,2.90588]
[1719929023485,0.42123401,3441.9,3441.5,2.90569]
[1719929023688,0.42123401,3441.9,3441.4,2.90573]
[1719929023874,0.1532467,3441.8,3441.4,2.90573]
[1719929024288,0.07264273,3441.7,3441.0,2.9061]
[1719929024499,0.07264273,3441.7,3441.0,5.81216]
[1719929024806,0.42063446,3441.7,3441.0,5.81216]
[1719929025009,0.42063446,3441.7,3441.1,2.90603]
[1719929025614,0.42063446,3441.7,3441.2,2.90594]
[1719929025983,0.07264273,3441.7,3441.2,2.90594]
[1719929026185,8.7173,3441.6,3441.2,2.90594]
[1719929026890,8.7173,3441.6,3441.0,2.90606]
[1719929026891,0.07264878,3441.5,3441.1,2.90603]
[1719929027091,0.07264878,3441.5,3441.0,2.90605]
[1719929027092,0.07264879,3441.5,3441.0,2.90605]
[1719929027324,0.07264879,3441.5,3441.1,2.90603]
[1719929027325,0.87899488,3441.4,3441.1,2.90603]
[1719929027823,0.87899488,3441.4,3441.2,2.90596]
[1719929028021,8.7173,3441.6,3441.2,2.90596]
[1719929028322,0.07264879,3441.5,3441.2,2.90596]
[1719929029088,0.07264879,3441.5,3441.0,2.90605]
[1719929029288,8.7173,3441.4,3441.0,2.90605]
[1719929029630,0.07264882,3441.3,3441.1,2.90604]
[1719929029928,0.07264882,3441.3,3440.8,2.90626]
[1719929030091,0.07264882,3441.3,3440.3,2.90672]